bitfinex/quotes_SOLUSD_20250705
["timestamp","ask_amount","ask_price","bid_price","bid_amount"]
[1751710260695,5.04926014,148.11,148.08,49.63571974]
[1751710260890,6.04393352,148.12,148.08,49.63571974]
[1751710261091,5.04926181,148.11,148.08,49.63571974]
[1751710261290,6.04393352,148.12,148.08,49.63571974]
[1751710261491,5.04942847,148.11,148.08,49.63571974]
[1751710261693,6.04393352,148.12,148.08,49.63571974]
[1751710261891,5.04987989,148.11,148.08,49.63571974]
[1751710262194,6.04393352,148.12,148.08,49.63571974]
[1751710262499,5.05057499,148.11,148.08,49.63571974]
[1751710262692,6.04393352,148.12,148.08,49.63571974]
[1751710262992,5.05057499,148.11,148.08,49.63571974]
[1751710263312,5.05135665,148.1,148.08,49.63571974]
[1751710263518,6.04393352,148.12,148.08,49.63571974]
[1751710263676,5.05135497,148.11,148.08,49.63571974]
[1751710263974,5.05135497,148.1,148.08,49.63571974]
[1751710264174,3.88458001,148.12,148.08,49.63571974]
[1751710264401,5.05223368,148.11,148.08,49.63571974]
[1751710264706,5.05223368,148.1,148.08,49.63571974]
[1751710264880,3.88458001,148.12,148.08,49.63571974]
[1751710265182,5.05223368,148.11,148.08,49.63571974]
[1751710265504,5.05223368,148.1,148.08,49.63571974]
[1751710265680,3.88458001,148.12,148.08,49.63571974]
[1751710265881,5.05321739,148.11,148.08,49.63571974]
[1751710266197,5.05321739,148.1,148.08,49.63571974]
[1751710266378,3.88458001,148.12,148.08,49.63571974]
[1751710266604,8.87891585,148.11,148.08,6.75295367]
[1751710266774,5.05433584,148.1,148.08,6.75295367]
[1751710266975,5.05454509,148.09,148.08,6.75295367]
[1751710284318,5.0659705,148.09,148.08,6.75295367]
[1751710285019,5.1259705,148.09,148.08,6.75295367]
[1751710285532,8.95055051,148.09,148.07,6.75342361]
[1751710285825,5.0659705,148.08,148.07,6.75342361]
[1751710290921,5.0659705,148.08,148.07,10.57800362]
[1751710291115,0.06,148.09,148.07,16.75180362]
[1751710291421,0.06,148.09,148.08,3.82458001]
[1751710291625,0.06,148.09,148.07,12.92722361]
[1751710291802,0.06,148.09,148.08,3.82458001]
[1751710293425,0.06,148.09,148.08,10.57768643]
[1751710293631,0.06,148.09,148.08,6.75310642]
[1751710296827,5.12166235,148.09,148.07,6.75343755]
[1751710297036,5.06166235,148.08,148.06,26.03]
[1751710297217,3.88458001,148.09,148.06,26.03]
[1751710297218,8.88624236,148.07,148.06,0.03]
[1751710297612,40.62191685,148.07,148.06,0.03]
[1751710297937,34.28945372,148.07,148.03,0.03]
[1751710298237,3.82458001,148.04,148.03,0.03]
[1751710298444,8.88624236,148.04,148.03,0.03]
[1751710299937,11.04524971,148.04,148.03,0.03]
[1751710302218,5.98358736,148.04,148.03,0.03]
[1751710302419,11.04524971,148.04,148.03,0.03]
[1751710302620,5.98358736,148.04,148.03,0.03]
[1751710302823,11.04524971,148.04,148.03,0.03]
[1751710305539,42.29199123,148.04,148.03,0.03]
[1751710311261,36.59199123,148.04,148.03,0.03]
[1751710319452,36.55773882,148.04,148.03,0.03]
[1751710320956,31.53032888,148.04,148.03,0.03]
[1751710323284,36.55773537,148.04,148.03,0.03]
[1751710323804,34.40362769,148.04,148.03,0.03]
[1751710326266,29.3762212,148.04,148.03,0.03]
[1751710327072,34.40406197,148.04,148.03,0.03]
[1751710328371,30.57458229,148.04,148.03,0.03]
[1751710328678,34.40406197,148.04,148.03,0.03]
[1751710338871,5.02784077,148.04,148.03,0.03]
[1751710339078,5.02784077,148.05,148.03,0.03]
[1751710339266,5.02784077,148.04,148.03,0.03]
[1751710339465,5.7,148.08,148.03,3.85947968]
[1751710339775,5.04603929,148.07,148.05,3.82947968]
[1751710339979,5.04603929,148.06,148.05,3.82947968]
[1751710340457,5.04603929,148.06,148.04,3.82947968]
[1751710340658,5.04603929,148.05,148.04,3.82947968]
[1751710340861,5.04603929,148.07,148.04,3.82947968]
[1751710341066,5.04603929,148.06,148.04,3.82947968]
[1751710341376,5.04603929,148.05,148.04,3.82947968]
[1751710342878,5.04603929,148.05,148.04,10.58441077]
[1751710348786,5.04603929,148.05,148.03,0.03]
[1751710348969,5.04603929,148.04,148.03,3.85947968]
[1751710349168,5.04603929,148.07,148.03,3.85947968]
[1751710349369,5.04603929,148.06,148.03,3.85947968]
[1751710349589,5.04603929,148.05,148.03,3.85947968]
[1751710349778,5.04603929,148.04,148.03,3.85947968]
[1751710349976,5.04603929,148.07,148.04,6.75493109]
[1751710350182,5.04603929,148.06,148.04,6.75493109]
[1751710350387,5.04603929,148.05,148.04,6.75493109]
[1751710366106,5.04603929,148.05,148.03,10.61466071]
[1751710366331,22.5902293,148.08,148.03,10.61466071]
[1751710366503,5.05220187,148.07,148.03,10.61466071]
[1751710366683,5.05220187,148.06,148.03,10.61466071]
[1751710366993,5.05220187,148.05,148.03,10.61466071]
[1751710367178,22.5902293,148.08,148.03,10.61466071]
[1751710367381,5.05231404,148.07,148.03,10.61466071]
[1751710367589,22.5902293,148.08,148.03,10.61466071]
[1751710367590,5.05231404,148.06,148.03,10.61466071]
[1751710367796,5.05231404,148.05,148.03,10.61466071]
[1751710368013,3.82947968,148.07,148.03,10.61466071]
[1751710368203,5.05231572,148.06,148.03,10.61466071]
[1751710368405,5.05231572,148.05,148.03,10.61466071]
[1751710368602,3.82947968,148.07,148.03,10.61466071]
[1751710368834,5.05246435,148.06,148.03,10.61466071]
[1751710368997,5.05246435,148.05,148.03,10.61466071]
[1751710369199,3.82947968,148.07,148.03,10.61466071]
[1751710369398,5.05294188,148.06,148.03,10.61466071]
[1751710369705,5.05294188,148.05,148.03,10.61466071]
[1751710369908,3.82947968,148.07,148.03,10.61466071]
[1751710370211,5.0529419,148.06,148.03,10.61466071]
[1751710370402,5.0529419,148.05,148.03,10.61466071]
[1751710370604,22.5902293,148.08,148.03,10.61466071]
[1751710370912,5.05332461,148.07,148.03,0.03]
[1751710371096,5.05332461,148.06,148.03,3.85947968]
[1751710371298,5.05332461,148.05,148.03,3.85947968]
[1751710371597,5.05332461,148.04,148.03,3.85947968]
[1751710371911,5.05332461,148.07,148.03,3.85947968]
[1751710372103,5.05332461,148.06,148.03,10.61443305]
[1751710372305,5.05332461,148.05,148.03,10.61443305]
[1751710372503,22.5902293,148.08,148.03,10.61443305]
[1751710372504,5.05332461,148.04,148.03,10.61443305]
[1751710378833,5.05332461,148.04,148.03,0.03]
[1751710381731,3.9607782,148.04,148.03,0.03]
[1751710382722,3.9607782,148.04,148.03,3.85947968]
[1751710384224,3.9607782,148.04,148.03,10.6148671]
[1751710386633,3.9607782,148.04,148.03,3.85947968]
[1751710389933,3.9607782,148.04,148.03,0.03]
[1751710392145,3.9607782,148.04,148.03,0.03]
[1751710393242,3.82947968,148.07,148.03,0.03]
[1751710395247,16.28278152,148.08,148.03,0.03]
[1751710396112,16.28278152,148.08,148.03,10.61486472]
[1751710397844,6.33992773,148.06,148.03,10.61486472]
[1751710398233,5.07194219,148.05,148.03,10.61486472]
[1751710398532,5.07194219,148.04,148.03,10.61486472]
[1751710401639,5.07194219,148.04,148.03,3.85947968]
[1751710401840,5.07194219,148.04,148.03,0.03]
[1751710412955,5.06852105,148.04,148.03,0.03]
[1751710416643,15.65293182,148.04,148.0,0.03]
[1751710416826,15.23415081,148.03,148.0,0.03]
[1751710417027,5.06852105,148.02,148.0,0.03]
[1751710417238,5.06852105,148.01,148.0,0.03]
[1751710434990,5.06852105,148.01,148.0,3.85947968]
[1751710435672,6.33615008,148.07,148.01,26.0]
[1751710435868,5.05630617,148.06,148.03,3.82947968]
[1751710436075,5.05630617,148.05,148.03,3.82947968]
[1751710436370,5.05630617,148.04,148.03,3.82947968]
[1751710436585,5.05630617,148.04,148.03,10.5848671]
[1751710441290,3.82947968,148.07,148.03,10.5848671]
[1751710441497,5.05644405,148.06,148.03,10.5848671]
[1751710441795,5.05644405,148.05,148.03,10.5848671]
[1751710441972,5.05644405,148.04,148.03,10.5848671]
[1751710442375,5.05644405,148.04,148.02,10.58532348]
[1751710442587,3.82947968,148.07,148.02,10.58532348]
[1751710442766,5.05633812,148.06,148.02,10.58532348]
[1751710443092,5.05633812,148.05,148.03,3.82947968]
[1751710443279,5.05633812,148.04,148.03,3.82947968]
[1751710443479,5.05633812,148.04,148.02,10.58532348]
[1751710443687,5.05633812,148.03,148.02,10.58532348]
[1751710444399,5.05633812,148.03,148.02,6.7558438]
[1751710444601,5.05633812,148.03,148.01,6.7562269]
[1751710444895,5.05714595,148.02,148.01,6.7562269]
[1751710445193,8.88662563,148.02,148.0,0.03]
[1751710445393,5.05714595,148.01,148.0,0.03]
[1751710445891,8.88662563,148.01,148.0,0.03]
[1751710451712,5.05714595,148.01,148.0,0.03]
[1751710466211,5.05714595,148.01,148.0,3.85947968]
[1751710466453,43.11091212,148.07,148.0,3.85947968]
[1751710466717,5.05800172,148.06,148.02,3.82947968]
[1751710467020,5.05800172,148.05,148.02,3.82947968]
[1751710467198,5.05800172,148.04,148.02,3.82947968]
[1751710467399,5.05800172,148.03,148.02,3.82947968]
[1751710467600,5.05800172,148.03,148.02,10.58532348]
[1751710469521,18.98143244,148.07,148.02,10.58532348]
[1751710469720,5.05678101,148.06,148.03,3.82947968]
[1751710469908,5.05678101,148.05,148.03,3.82947968]
[1751710470104,5.05678101,148.04,148.03,3.82947968]
[1751710471521,5.05678101,148.04,148.03,10.5848671]
[1751710472000,5.05603628,148.04,148.03,10.5848671]
[1751710472704,5.05603628,148.04,148.03,6.75538742]
[1751710480228,5.05603628,148.04,148.02,3.82947968]
[1751710480529,3.82947968,148.06,148.02,3.82947968]
[1751710480824,5.05415802,148.05,148.02,3.82947968]
[1751710481022,5.05415802,148.04,148.02,3.82947968]
[1751710481222,3.82947968,148.06,148.02,3.82947968]
[1751710481445,5.0541763,148.05,148.02,3.82947968]
[1751710481622,5.0541763,148.04,148.02,3.82947968]
[1751710481823,3.82947968,148.06,148.02,3.82947968]
[1751710482022,5.05415903,148.05,148.02,3.82947968]
[1751710482222,5.05415903,148.04,148.02,3.82947968]
[1751710482424,3.82947968,148.06,148.03,6.75538742]
[1751710482729,5.05415491,148.05,148.03,6.75538742]
[1751710482931,5.05415491,148.04,148.03,6.75538742]
[1751710483814,5.05415491,148.04,148.01,10.58577992]
[1751710484015,5.05415491,148.03,148.01,10.58577992]
[1751710484336,3.82947968,148.05,148.01,10.58577992]
[1751710484509,5.05460151,148.04,148.01,10.58577992]
[1751710484708,3.82947968,148.05,148.01,10.58577992]
[1751710484709,5.05460151,148.03,148.01,10.58577992]
[1751710484909,3.82947968,148.05,148.01,10.58577992]
[1751710485139,5.05460151,148.04,148.01,10.58577992]
[1751710485341,5.05460151,148.03,148.01,10.58577992]
[1751710485631,3.82947968,148.05,148.01,10.58577992]
[1751710485837,5.05475966,148.04,148.01,6.75630024]
[1751710486044,5.05475966,148.03,148.01,10.58577992]
[1751710486337,5.05475966,148.02,148.01,6.75630024]
[1751710487022,5.05475966,148.02,148.01,10.58577992]
[1751710488536,5.05475966,148.04,148.01,10.58577992]
[1751710488719,5.05475966,148.03,148.01,10.58577992]
[1751710489017,3.82947968,148.05,148.01,10.58577992]
[1751710489335,5.05595295,148.04,148.01,10.58577992]
[1751710489529,5.05595295,148.03,148.01,10.58577992]
[1751710489740,3.82947968,148.05,148.01,10.58577992]
[1751710489912,5.05595296,148.04,148.01,10.58577992]
[1751710490250,5.05595296,148.03,148.01,10.58577992]
[1751710490418,3.82947968,148.05,148.01,10.58577992]
[1751710490616,5.05588577,148.04,148.01,10.58577992]
[1751710490828,5.05588577,148.03,148.01,10.58577992]
[1751710491030,3.82947968,148.05,148.01,10.58577992]
[1751710491231,5.0560583,148.04,148.01,10.58577992]
[1751710491438,5.0560583,148.03,148.01,10.58577992]
[1751710491642,3.82947968,148.05,148.01,10.58577992]
[1751710491833,5.05605494,148.04,148.01,10.58577992]
[1751710492044,5.05605494,148.03,148.01,10.58577992]
[1751710492338,3.82947968,148.05,148.01,10.58577992]
[1751710492538,5.05624879,148.04,148.01,10.58577992]
[1751710492720,5.05624879,148.03,148.01,10.58577992]
[1751710492923,3.82947968,148.05,148.01,10.58577992]
[1751710493142,5.05625215,148.04,148.01,10.58577992]
[1751710493441,5.05625215,148.03,148.01,10.58577992]
[1751710493643,3.82947968,148.05,148.01,10.58577992]
[1751710493946,5.05646841,148.04,148.01,10.58577992]
[1751710494149,5.05646841,148.03,148.01,10.58577992]
[1751710494446,3.82947968,148.05,148.01,10.58577992]
[1751710494747,5.0567167,148.04,148.01,10.58577992]
[1751710494953,5.0567167,148.03,148.01,10.58577992]
[1751710495156,3.82947968,148.05,148.01,10.58577992]
[1751710495328,5.05675378,148.04,148.01,10.58577992]
[1751710495532,5.05675378,148.03,148.01,10.58577992]
[1751710495729,3.82947968,148.05,148.01,10.58577992]
[1751710495929,5.05675378,148.04,148.01,10.58577992]
[1751710496226,5.05675378,148.03,148.01,10.58577992]
[1751710496428,3.82947968,148.05,148.01,10.58577992]
[1751710496650,5.05701578,148.04,148.01,10.58577992]
[1751710496846,5.05701578,148.03,148.01,10.58577992]
[1751710497043,3.82947968,148.05,148.01,10.58577992]
[1751710497246,5.05731461,148.04,148.01,10.58577992]
[1751710497436,5.05731461,148.03,148.01,10.58577992]
[1751710497629,3.82947968,148.05,148.01,10.58577992]
[1751710497829,5.05731125,148.04,148.01,10.58577992]
[1751710498039,5.05731125,148.03,148.01,10.58577992]
[1751710498348,3.82947968,148.05,148.01,10.58577992]
[1751710498537,5.05765038,148.04,148.01,10.58577992]
[1751710498742,5.05765038,148.03,148.01,10.58577992]
[1751710499037,3.82947968,148.05,148.01,10.58577992]
[1751710499228,5.0580349,148.04,148.01,10.58577992]
[1751710499431,5.0580349,148.03,148.01,10.58577992]
[1751710499627,3.82947968,148.05,148.01,10.58577992]
[1751710499829,5.0580349,148.04,148.01,10.58577992]
[1751710500032,5.0580349,148.03,148.01,10.58577992]
[1751710500232,3.82947968,148.05,148.01,10.58577992]
[1751710500444,5.05835234,148.04,148.01,10.58577992]
[1751710500637,5.05835234,148.03,148.01,10.58577992]
[1751710500838,3.82947968,148.05,148.01,10.58577992]
[1751710501039,5.0583557,148.04,148.01,10.58577992]
[1751710501329,5.0583557,148.03,148.01,10.58577992]
[1751710501535,3.82947968,148.05,148.01,10.58577992]
[1751710501738,5.0587168,148.04,148.01,10.58577992]
[1751710501924,5.0587168,148.03,148.01,10.58577992]
[1751710502129,3.82947968,148.05,148.01,10.58577992]
[1751710502334,5.059258,148.04,148.01,10.58577992]
[1751710502556,5.059258,148.03,148.01,10.58577992]
[1751710502738,3.82947968,148.05,148.01,10.58577992]
[1751710502939,5.05937946,148.04,148.01,10.58577992]
[1751710503240,5.05937946,148.03,148.01,10.58577992]
[1751710503441,3.82947968,148.05,148.01,10.58577992]
[1751710503739,5.0599875,148.04,148.01,10.58577992]
[1751710503972,5.0599875,148.03,148.01,10.58577992]
[1751710504238,3.82947968,148.05,148.01,10.58577992]
[1751710504442,5.06067725,148.04,148.01,10.58577992]
[1751710504641,5.06067725,148.03,148.01,10.58577992]
[1751710504943,3.82947968,148.05,148.01,10.58577992]
[1751710505144,5.06067725,148.04,148.01,10.58577992]
[1751710505346,5.06067725,148.03,148.01,10.58577992]
[1751710505526,5.06067725,148.02,148.01,10.58577992]
[1751710506652,5.06255435,148.02,148.01,10.58577992]
[1751710507159,5.06255435,148.02,148.01,6.75630024]
[1751710507352,5.06255435,148.02,148.01,10.58577992]
[1751710512362,3.82947968,148.05,148.01,10.58577992]
[1751710512559,5.06829669,148.04,148.01,10.58577992]
[1751710512740,5.06829669,148.03,148.01,10.58577992]
[1751710513037,5.06829669,148.02,148.01,10.58577992]
[1751710517072,5.06829669,148.02,148.01,6.75630024]
[1751710517370,5.06829669,148.02,148.01,10.58577992]
[1751710518177,5.06855406,148.02,148.01,10.58577992]
[1751710523675,5.06855406,148.02,148.01,6.75630024]
[1751710531983,5.06855406,148.02,148.01,10.58577992]
[1751710535178,5.06855406,148.02,148.01,6.75630024]
[1751710546877,5.06855406,148.02,148.01,10.58577992]
[1751710547995,5.06855406,148.02,148.01,6.75630024]
[1751710548294,5.06855406,148.02,148.01,10.58577992]
[1751710561335,5.06855406,148.02,148.01,6.75630024]
[1751710561623,5.06855406,148.02,148.0,32.78657683]
[1751710561827,5.06855406,148.01,148.0,32.78657683]
[1751710562310,5.06855406,148.01,148.0,36.61605651]
[1751710566722,24.73814886,148.08,148.0,75.19936712]
[1751710566723,5.06828671,148.04,148.0,75.19936712]
[1751710567025,6.33569258,148.08,148.04,6.75493109]
[1751710567322,13.33569258,148.09,148.07,3.82947968]
[1751710567516,5.06601879,148.08,148.07,3.82947968]
[1751710568608,5.06601879,148.08,148.04,23.64225883]
[1751710568810,0.06,148.09,148.07,3.82947968]
[1751710569124,5.06377865,148.08,148.07,3.82947968]
[1751710569305,5.06377865,148.08,148.07,10.58304218]
[1751710572037,5.06377865,148.08,148.07,6.7535625]
[1751710574729,5.06377865,148.08,148.05,10.58395451]
[1751710574931,5.06377865,148.07,148.05,10.58395451]
[1751710575112,3.88947968,148.09,148.05,10.58395451]
[1751710575306,5.05459283,148.08,148.05,10.58395451]
[1751710575510,5.05459283,148.07,148.05,10.58395451]
[1751710575708,3.88947968,148.09,148.05,10.58395451]
[1751710576121,5.05443219,148.08,148.05,10.58395451]
[1751710576321,5.05443219,148.07,148.05,10.58395451]
[1751710576529,3.88947968,148.09,148.05,10.58395451]
[1751710576727,5.05387626,148.08,148.05,10.58395451]
[1751710577021,5.05387626,148.07,148.05,10.58395451]
[1751710577235,3.88947968,148.09,148.05,10.58395451]
[1751710577436,5.05353866,148.08,148.05,10.58395451]
[1751710577629,5.05353866,148.07,148.04,23.64225883]
[1751710577924,3.88947968,148.09,148.05,3.82947968]
[1751710578126,5.05338003,148.08,148.05,3.82947968]
[1751710578306,5.05338003,148.07,148.05,3.82947968]
[1751710578503,3.88947968,148.09,148.06,6.75401864]
[1751710578706,5.05293635,148.08,148.06,6.75401864]
[1751710578906,5.05293635,148.07,148.06,6.75401864]
[1751710581720,5.05293635,148.07,148.04,27.47173851]
[1751710581920,0.06,148.09,148.05,3.82947968]
[1751710582136,5.05220792,148.08,148.06,3.82947968]
[1751710582339,5.05220792,148.07,148.06,3.82947968]
[1751710582530,5.05220792,148.07,148.05,3.82947968]
[1751710582731,0.06,148.09,148.05,3.82947968]
[1751710582932,5.05209146,148.08,148.05,3.82947968]
[1751710583115,5.05209146,148.07,148.06,6.75401864]
[1751710584439,5.05209146,148.08,148.06,6.75401864]
[1751710584639,5.05209146,148.07,148.06,6.75401864]
[1751710584936,5.05209146,148.08,148.06,6.75401864]
[1751710585130,5.05209146,148.07,148.06,6.75401864]
[1751710585310,5.05209146,148.08,148.06,6.75401864]
[1751710585516,5.05209146,148.07,148.06,6.75401864]
[1751710585840,5.05209146,148.08,148.06,6.75401864]
[1751710586033,5.05209146,148.07,148.06,6.75401864]
[1751710586225,5.05209146,148.08,148.06,6.75401864]
[1751710586429,5.05209146,148.07,148.05,3.82947968]
[1751710586630,5.05209146,148.08,148.05,3.82947968]
[1751710586829,5.05209146,148.07,148.05,3.82947968]
[1751710587139,5.05209146,148.08,148.05,3.82947968]
[1751710587337,3.88947968,148.09,148.05,3.82947968]
[1751710587537,5.05102378,148.08,148.06,6.75401864]
[1751710587739,3.88947968,148.09,148.06,6.75401864]
[1751710587941,5.0510221,148.08,148.06,6.75401864]
[1751710588242,3.88947968,148.09,148.06,6.75401864]
[1751710588428,5.05092066,148.08,148.06,6.75401864]
[1751710588630,3.88947968,148.09,148.06,6.75401864]
[1751710588832,5.05086713,148.08,148.06,6.75401864]
[1751710589031,3.88947968,148.09,148.06,6.75401864]
[1751710589230,5.05079279,148.08,148.06,6.75401864]
[1751710589434,3.88947968,148.09,148.06,6.75401864]
[1751710589633,5.05075404,148.08,148.06,6.75401864]
[1751710589847,3.88947968,148.09,148.06,6.75401864]
[1751710590038,5.05075404,148.08,148.06,6.75401864]
[1751710590240,3.88947968,148.09,148.06,6.75401864]
[1751710590441,5.05070749,148.08,148.06,6.75401864]
[1751710590644,3.88947968,148.09,148.06,6.75401864]
[1751710590835,5.05068523,148.08,148.06,6.75401864]
[1751710591035,0.06,148.09,148.06,6.75401864]
[1751710591232,5.05066306,148.08,148.06,6.75401864]
[1751710591448,0.06,148.09,148.06,6.75401864]
[1751710591628,5.05066246,148.08,148.06,6.75401864]
[1751710591951,0.06,148.09,148.06,6.75401864]
[1751710592144,5.05066414,148.08,148.06,6.75401864]
[1751710592337,0.06,148.09,148.06,6.75401864]
[1751710592642,5.05058783,148.08,148.06,6.75401864]
[1751710592951,3.88947968,148.09,148.06,6.75401864]
[1751710593150,5.05058783,148.08,148.06,6.75401864]
[1751710593352,3.88947968,148.09,148.06,6.75401864]
[1751710593653,5.05054862,148.08,148.06,6.75401864]
[1751710593949,3.88947968,148.09,148.06,6.75401864]
[1751710594153,5.05073662,148.08,148.06,6.75401864]
[1751710594337,5.05073662,148.07,148.06,6.75401864]
[1751710594654,5.05073662,148.08,148.06,6.75401864]
[1751710594947,5.05073662,148.07,148.06,6.75401864]
[1751710595149,5.05073662,148.08,148.06,6.75401864]
[1751710595350,5.05073662,148.07,148.06,6.75401864]
[1751710595525,5.05073662,148.08,148.06,6.75401864]
[1751710595728,5.05073662,148.07,148.06,6.75401864]
[1751710595948,5.05073662,148.08,148.06,6.75401864]
[1751710596249,5.05073662,148.07,148.06,6.75401864]
[1751710596435,5.05073662,148.08,148.06,6.75401864]
[1751710596637,5.05073662,148.07,148.06,6.75401864]
[1751710596951,5.05073662,148.08,148.06,6.75401864]
[1751710597152,5.05073662,148.07,148.06,6.75401864]
[1751710597357,5.05073662,148.08,148.06,6.75401864]
[1751710597529,5.05073662,148.07,148.06,6.75401864]
[1751710597729,5.05073662,148.08,148.06,6.75401864]
[1751710598023,5.05073662,148.07,148.06,6.75401864]
[1751710599955,5.05073662,148.07,148.05,3.82947968]
[1751710600260,3.88947968,148.09,148.05,3.82947968]
[1751710600431,5.05281853,148.08,148.05,3.82947968]
[1751710600632,5.05281853,148.07,148.05,3.82947968]
[1751710600833,3.88947968,148.09,148.05,3.82947968]
[1751710601033,5.05282189,148.08,148.06,6.75401864]
[1751710601249,5.05282189,148.07,148.06,6.75401864]
[1751710610036,5.05282189,148.07,148.04,6.75493109]
[1751710610260,5.05282189,148.06,148.05,3.82947968]
[1751710612767,5.05282189,148.06,148.04,32.75493109]
[1751710613066,6.39569258,148.09,148.05,10.58395451]
[1751710613368,5.06853082,148.08,148.05,10.58395451]
[1751710613566,5.06853082,148.07,148.05,10.58395451]
[1751710613861,5.06853082,148.06,148.05,10.58395451]
[1751710614041,5.06853082,148.06,148.05,6.75447483]
[1751710614240,5.06853082,148.06,148.05,10.58395451]
[1751710619152,5.06853082,148.06,148.05,36.58395451]
[1751710622660,5.06853082,148.06,148.05,10.58395451]
[1751710622860,5.06853082,148.06,148.05,36.58395451]
[1751710624176,5.06917201,148.06,148.05,36.58395451]
[1751710631985,5.06917201,148.06,148.03,0.03]
[1751710632278,5.06917201,148.05,148.04,3.82947968]
[1751710632881,5.06917201,148.05,148.04,10.58441077]
[1751710635787,5.06917201,148.05,148.04,6.75493109]
[1751710637282,5.06917201,148.05,148.03,3.85947968]
[1751710637283,5.06917201,148.05,148.03,10.6148671]
[1751710637489,5.06917201,148.04,148.03,10.6148671]
[1751710640676,0.06,148.06,148.03,10.6148671]
[1751710640976,5.06649299,148.05,148.04,10.58441077]
[1751710644292,5.06649299,148.05,148.04,3.82947968]
[1751710644789,5.06649299,148.05,148.03,6.78538742]
[1751710644983,0.06,148.06,148.04,3.82947968]
[1751710645169,5.06649663,148.05,148.04,3.82947968]
[1751710645477,5.06649663,148.05,148.04,10.58441077]
[1751710648994,5.06649663,148.05,148.04,10.72657234]
[1751710649184,0.06,148.06,148.04,10.72657234]
[1751710649495,0.06,148.06,148.05,3.82947968]
[1751710649697,5.12581056,148.06,148.05,3.82947968]
[1751710651698,5.12581056,148.06,148.05,36.58395451]
[1751710655400,5.12581056,148.06,148.05,32.75447483]
[1751710655608,5.12581056,148.06,148.04,32.75477634]
[1751710655814,5.06581056,148.05,148.04,32.75477634]
[1751710656810,5.06581056,148.05,148.04,6.75477634]
[1751710658111,5.06581056,148.05,148.03,36.61485166]
[1751710658311,5.06581056,148.04,148.03,36.61485166]
[1751710660013,0.06,148.06,148.03,36.61485166]
[1751710660324,5.06489727,148.05,148.03,36.61485166]
[1751710660488,5.06489727,148.04,148.03,36.61485166]
[1751710662816,5.06489727,148.04,148.03,32.78537198]
[1751710663028,5.06489727,148.04,148.03,36.61485166]
[1751710665412,5.06489727,148.04,148.03,32.78537198]
[1751710665619,5.06489727,148.04,148.03,36.61485166]
[1751710670511,0.06,148.06,148.03,36.61485166]
[1751710670812,5.06264153,148.05,148.03,49.67384053]
[1751710670999,0.06,148.06,148.04,3.82947968]
[1751710671197,0.06,148.06,148.05,3.82947968]
[1751710671504,5.1229192,148.06,148.05,3.82947968]
[1751710671997,5.1229192,148.06,148.05,10.58395451]
[1751710674797,5.12323917,148.06,148.05,10.58395451]
[1751710675318,5.12323917,148.06,148.04,6.75493109]
[1751710675506,5.06323917,148.05,148.04,6.75493109]
[1751710676522,5.06323917,148.05,148.04,10.58441077]
[1751710678220,0.06,148.06,148.04,10.58441077]
[1751710678515,0.06,148.06,148.05,3.82947968]
[1751710678721,5.12334125,148.06,148.05,10.58395451]
[1751710683116,0.06,148.06,148.05,10.58395451]
[1751710698236,1e-08,148.06,148.05,36.72611608]
[1751710701128,1e-08,148.06,148.05,36.58395451]
[1751710704820,1e-08,148.06,148.05,36.72611608]
[1751710705145,0.06,148.09,148.06,26.14216157]
[1751710705342,0.06,148.09,148.08,29.82947968]
[1751710706454,0.06,148.09,148.08,36.5825861]
[1751710714666,0.06,148.12,148.08,53.46535217]
[1751710714958,0.06,148.12,148.11,3.82947968]
[1751710715160,5.10883849,148.12,148.11,3.82947968]
[1751710716059,5.10883849,148.12,148.11,10.58121825]
[1751710719067,5.10883849,148.12,148.09,23.63427644]
[1751710719270,0.06,148.12,148.1,3.82947968]
[1751710721468,0.06,148.12,148.09,20.71110571]
[1751710722140,3.88947968,148.12,148.1,6.75219446]
[1751710722345,5.04999715,148.11,148.09,6.75248659]
[1751710722553,3.88947968,148.12,148.09,6.75248659]
[1751710722770,3.88947968,148.12,148.06,0.03]
[1751710722771,3.82947968,148.1,148.06,0.03]
[1751710723068,3.82947968,148.08,148.06,0.03]
[1751710723369,3.82947968,148.07,148.06,0.03]
[1751710723773,8.88109201,148.07,148.06,0.03]
[1751710725949,11.03222634,148.07,148.06,0.03]
[1751710729257,5.05161233,148.07,148.06,0.03]
[1751710729463,11.03222634,148.07,148.06,0.03]
[1751710732282,5.05161233,148.07,148.06,0.03]
[1751710732582,29.82403677,148.07,148.06,0.03]
[1751710732788,44.51485995,148.07,148.06,0.03]
[1751710732976,18.79181043,148.06,148.03,0.03]
[1751710733174,24.77242444,148.04,148.03,0.03]
[1751710733376,29.82403677,148.04,148.03,0.03]
[1751710734364,36.57896786,148.04,148.03,0.03]
[1751710737357,23.70126119,148.04,148.03,0.03]
[1751710737562,29.6818752,148.04,148.03,0.03]
[1751710741463,36.57896786,148.04,148.03,0.03]
[1751710743183,42.27896786,148.04,148.03,0.03]
[1751710755094,36.57896786,148.04,148.03,0.03]